bitfinex-derivatives/quotes_ETHF0:USTF0_20210402
["timestamp","ask_amount","ask_price","bid_price","bid_amount"]
[1617355969888,74.5941,1992.4,1991.3,59.5969]
[1617355970089,73.5777,1992.4,1991.3,59.5969]
[1617355970988,73.5777,1992.4,1992.3,2.90695]
[1617355971589,1.9659,1992.4,1992.3,2.90695]
[1617355972993,4.87285,1992.4,1992.3,2.90695]
[1617355974196,3.86925,1992.4,1992.3,2.90695]
[1617355974994,3.86925,1992.4,1991.2,30.0]
[1617355974995,3.86925,1992.4,1992.1,2.90695]
[1617355975399,61.1173,1992.2,1992.1,2.90695]
[1617355976197,3.86925,1992.4,1992.1,2.90695]
[1617355976595,3.86925,1992.4,1992.1,64.83295]
[1617355976997,2.90695,1992.2,1992.1,64.83295]
[1617355981103,1.90335,1992.2,1992.1,64.83295]
[1617355983003,2.90695,1992.4,1992.1,64.83295]
[1617355985105,2.90695,1992.4,1992.3,2.90695]
[1617355991335,82.19455,1992.4,1992.3,2.90695]
[1617355991920,82.19455,1992.4,1992.3,5e-05]
[1617355996219,83.61755,1992.4,1992.3,5e-05]
[1617356000720,4.32995,1992.4,1992.3,5e-05]
[1617356005727,2.90695,1992.4,1992.3,5e-05]
[1617356011333,2.93621838,1992.4,1992.3,5e-05]
[1617356013235,2.90695,1992.4,1992.3,5e-05]
[1617356013435,2.90695,1992.4,1992.3,78.12335]
[1617356017942,2.90695,1992.4,1992.3,5e-05]
[1617356020045,2.90695,1992.4,1990.7,78.4326]
[1617356020046,63.4434,1992.3,1990.7,78.4326]
[1617356020248,65.177,1992.3,1990.7,108.4326]
[1617356020650,0.02937584,1991.7,1990.7,108.4326]
[1617356020952,1.24187584,1991.7,1990.7,108.4326]
[1617356021154,1.24187584,1991.7,1990.8,2.0]
[1617356021354,4.11945,1991.7,1991.6,2.90695]
[1617356024557,4.11945,1991.7,1990.7,78.4326]
[1617356024759,4.11945,1991.7,1990.1,2.0]
[1617356024959,71.4292,1991.2,1990.1,2.0]
[1617356025160,73.1721,1991.2,1990.1,2.0]
[1617356025360,73.1721,1991.2,1991.1,2.90695]
[1617356025559,1.7429,1991.2,1991.1,2.90695]
[1617356030566,3.61525767,1991.3,1991.1,2.90695]
[1617356031167,2.90695,1991.3,1991.1,2.90695]
[1617356032168,3.61527919,1991.3,1989.9,2.0]
[1617356032369,69.6196,1990.8,1989.8,2.0]
[1617356032569,71.4364,1990.8,1989.8,2.0]
[1617356032770,0.02951626,1990.6,1989.8,2.0]
[1617356032969,0.02951679,1990.5,1989.8,2.0]
[1617356033270,0.02951679,1990.5,1990.4,2.90695]
[1617356035377,0.14758805,1990.6,1990.4,2.90695]
[1617356036578,0.14758992,1990.5,1990.4,2.90695]
[1617356036779,0.14758996,1990.6,1990.4,2.90695]
[1617356037178,0.14759176,1990.5,1990.4,2.90695]
[1617356037981,2.90695,1990.6,1990.4,2.90695]
[1617356038383,3.37943303,1990.6,1990.4,2.90695]
[1617356038680,2.9364134,1990.6,1990.4,2.90695]
[1617356039483,69.766917,1990.8,1990.4,2.90695]
[1617356039484,0.02946228,1990.7,1990.4,2.90695]
[1617356040483,0.02945969,1990.8,1990.5,73.0212]
[1617356040782,0.02946004,1990.9,1990.5,73.0212]
[1617356041184,0.02946017,1990.8,1990.5,73.0212]
[1617356041385,0.02946017,1990.8,1990.7,2.90695]
[1617356041886,0.02945994,1990.9,1990.7,2.90695]
[1617356042285,0.02946,1990.8,1990.7,2.90695]
[1617356045989,0.02946,1990.8,1990.7,4.90695]
[1617356046190,0.02945833,1991.0,1990.7,4.90695]
[1617356046389,0.02945833,1991.0,1990.8,84.3075]
[1617356047389,2.08089999,1991.3,1990.9,2.90695]
[1617356049291,0.47116692,1991.5,1990.9,2.90695]
[1617356049495,0.47116692,1991.5,1991.4,4.65315]
[1617356052106,0.70691237,1991.6,1991.4,4.65315]
[1617356052412,0.47127636,1991.5,1991.4,4.65315]
[1617356052806,0.70692801,1991.6,1991.4,4.65315]
[1617356053206,0.70692801,1991.6,1991.4,2.90695]
[1617356053406,2.90695,1991.5,1991.4,2.90695]
[1617356054406,1.90415,1991.5,1991.4,2.90695]
[1617356054707,2.61109712,1991.5,1991.4,2.90695]
[1617356055009,1.90415,1991.5,1991.4,2.90695]
[1617356055708,2.6111044,1991.5,1991.4,2.90695]
[1617356058209,1.90415,1991.5,1991.4,2.90695]
[1617356059310,2.61109776,1991.5,1991.4,2.90695]
[1617356060609,1.90415,1991.5,1991.4,2.90695]
[1617356060909,2.61105319,1991.5,1991.4,2.90695]
[1617356061310,1.60825319,1991.5,1991.4,2.90695]
[1617356061610,0.90135,1991.5,1991.4,2.90695]
[1617356062408,1.60836797,1991.5,1991.4,2.90695]
[1617356067218,0.90135,1991.5,1991.4,2.90695]
[1617356068319,0.60549145,1991.6,1991.4,2.90695]
[1617356069519,3.51244145,1991.6,1991.4,2.90695]
[1617356069921,0.47111376,1991.5,1991.4,2.90695]
[1617356070325,2.90695,1991.6,1991.5,65.4828]
[1617356074529,2.90695,1991.6,1991.4,4.47805]
[1617356074728,59.74745,1991.6,1991.4,2.90695]
[1617356074929,0.47119329,1991.5,1991.4,2.90695]
[1617356075329,59.21584329,1991.6,1991.4,2.90695]
[1617356076530,2.37534329,1991.6,1991.4,2.90695]
[1617356076731,2.37534329,1991.6,1991.5,76.5731]
[1617356082338,1.37254329,1991.6,1991.5,76.5731]
[1617356089544,0.36974329,1991.6,1991.5,76.5731]
[1617356089744,2.90695,1991.8,1991.5,76.5731]
[1617356091347,0.94311004,1992.0,1991.8,82.1206]
[1617356091749,0.94310473,1992.1,1991.9,4.77795]
[1617356092148,0.94308973,1992.0,1991.9,4.77795]
[1617356092548,0.94305556,1992.1,1991.9,4.77795]
[1617356092949,0.88717962,1992.0,1991.9,4.77795]
[1617356093151,0.94299701,1992.2,1991.9,4.77795]
[1617356093552,0.94299455,1992.3,1992.2,57.7462]
[1617356093750,0.94299455,1992.3,1992.2,60.65315]
[1617356093950,1.17874029,1992.4,1992.2,60.65315]
[1617356094151,0.94271599,1992.3,1992.2,60.65315]
[1617356094351,0.94271599,1992.3,1992.2,2.90695]
[1617356095352,0.94270463,1992.4,1992.2,2.90695]
[1617356096354,0.82707,1992.4,1992.2,2.90695]
[1617356097353,1.17823611,1992.7,1992.2,98.44005]
[1617356097562,1.9964,1992.8,1992.2,4.90695]
[1617356097757,1.9964,1992.8,1992.7,2.90695]
[1617356097955,1.9964,1992.8,1992.7,4.46645]
[1617356098958,1.9964,1992.8,1992.7,75.06425]
[1617356099358,1.9964,1992.8,1992.7,6.46645]
[1617356099563,2.29083306,1992.8,1992.7,6.46645]
[1617356100558,1.9964,1992.8,1992.7,6.46645]
[1617356101258,2.05528119,1992.8,1992.7,6.46645]
[1617356103464,1.05248119,1992.8,1992.7,6.46645]
[1617356104264,0.9936,1992.8,1992.7,6.46645]
[1617356107165,0.9936,1992.8,1992.7,36.46645]
[1617356108564,0.9936,1992.8,1992.7,116.07965]
[1617356110367,10.05180766,1993.6,1992.7,116.07965]
[1617356110765,0.9936,1992.8,1992.7,116.07965]
[1617356112166,0.9936,1992.8,1992.7,84.07965]
[1617356112368,0.9936,1992.8,1992.7,4.46645]
[1617356112566,0.9936,1992.8,1992.7,2.90695]
[1617356116677,1.993,1992.8,1992.7,3.92185]
[1617356116876,1.993,1992.8,1992.7,2.90695]
[1617356117276,0.9936,1992.8,1992.7,2.90695]
[1617356119781,0.9936,1992.8,1992.7,65.97185]
[1617356122686,2.2985,1992.8,1992.7,65.97185]
[1617356124390,2.2985,1992.8,1992.7,2.90695]
[1617356125888,5.20545,1992.8,1992.7,2.90695]
[1617356127291,2.2985,1992.8,1992.7,2.90695]
[1617356127992,0.9936,1992.8,1992.7,2.90695]
[1617356128392,0.05852004,1993.5,1992.7,2.90695]
[1617356128592,1.0526343,1993.8,1993.3,56.8568]
[1617356129894,3.9595843,1993.8,1993.5,2.90695]
[1617356130093,0.05853425,1993.7,1993.5,2.90695]
[1617356130393,3.95958242,1993.8,1993.5,2.90695]
[1617356132098,0.05853477,1993.7,1993.5,2.90695]
[1617356132296,68.4554,1993.6,1993.5,2.90695]
[1617356133397,9.9932,1993.6,1993.5,2.90695]
[1617356134999,9.9932,1993.6,1993.5,4.76535]
[1617356135399,8.9913,1993.6,1993.5,4.76535]
[1617356137406,8.9913,1993.6,1993.5,2.90695]
[1617356139305,8.9913,1993.6,1993.5,4.55415]
[1617356142410,7.9894,1993.6,1993.5,4.55415]
[1617356145309,8.992,1993.6,1993.5,4.55415]
[1617356145510,7.9894,1993.6,1993.5,4.55415]
[1617356149517,6.9875,1993.6,1993.5,4.55415]
[1617356156518,5.9856,1993.6,1993.5,4.55415]
[1617356163431,4.9837,1993.6,1993.5,4.55415]
[1617356170535,3.9818,1993.6,1993.5,4.55415]
[1617356171439,3.9818,1993.6,1993.5,6.55415]
[1617356172840,3.9818,1993.6,1993.5,4.90695]
[1617356173544,3.9818,1993.6,1993.5,2.90695]
[1617356177551,2.9799,1993.6,1993.5,4.90695]
[1617356178149,2.9799,1993.6,1993.5,127.94815]
[1617356178352,2.9799,1993.6,1993.5,34.90695]
[1617356181354,2.9799,1993.6,1993.5,124.61815]
[1617356181558,2.9799,1993.6,1993.5,34.90695]
[1617356184459,1.978,1993.6,1993.5,35.89695]
[1617356185059,1.978,1993.6,1993.5,121.37585]
[1617356185260,1.978,1993.6,1993.5,35.89695]
[1617356191166,1.978,1993.6,1993.5,34.90695]
[1617356191365,1.978,1993.6,1993.5,102.41675]
[1617356191566,0.9761,1993.6,1993.5,102.41675]
[1617356193567,0.9761,1993.6,1993.5,72.41675]
[1617356193767,2.6545,1993.6,1993.5,70.41675]
[1617356193967,2.6545,1993.6,1993.5,2.90695]
[1617356195570,0.9761,1993.6,1993.5,2.90695]
[1617356197374,0.9761,1993.6,1993.5,4.22465]
[1617356199078,0.9761,1993.6,1993.5,2.90695]
[1617356200482,2.05847366,1995.3,1993.5,2.90695]
[1617356200483,2.03327366,1995.3,1993.5,2.90695]
[1617356200883,2.03327366,1995.3,1994.2,58.8089]
[1617356201083,1.9748,1995.3,1994.2,58.8089]
[1617356201283,2.03326371,1995.3,1994.2,58.8089]
[1617356201982,1.39386561,1995.2,1994.2,58.8089]
[1617356202682,0.05846865,1995.1,1994.2,58.8089]
[1617356202882,1.06686865,1995.1,1994.2,58.8089]
[1617356203083,0.05846875,1995.0,1994.2,58.8089]
[1617356203483,1.06686952,1995.1,1994.2,58.8089]
[1617356203683,0.05847033,1995.0,1994.2,58.8089]
[1617356204085,1.06687006,1995.1,1994.2,58.8089]
[1617356204484,3.97382006,1995.1,1995.0,2.90695]
[1617356204686,5.94862006,1995.1,1995.0,2.90695]
[1617356206191,5.89015,1995.1,1995.0,2.90695]
[1617356206487,6.18259769,1995.1,1995.0,2.90695]
[1617356206887,5.89015,1995.1,1995.0,2.90695]
[1617356207499,4.88885,1995.1,1995.0,2.90695]
[1617356207987,5.18130525,1995.1,1995.0,2.90695]
[1617356208390,4.88885,1995.1,1995.0,2.90695]
[1617356209587,34.88885,1995.1,1995.0,2.90695]
[1617356209987,36.84455,1995.1,1995.0,2.90695]
[1617356210489,37.13700821,1995.1,1995.0,2.90695]
[1617356212089,37.13700821,1995.1,1994.2,58.8089]
[1617356212489,34.40582242,1995.1,1994.8,2.90695]
[1617356212689,0.29264206,1995.0,1994.8,2.90695]
[1617356213792,0.05852746,1994.9,1994.8,2.90695]
[1617356214392,2.96547746,1994.9,1994.8,2.90695]
[1617356214591,33.93897746,1994.9,1994.8,2.90695]
[1617356215193,31.96417746,1994.9,1994.8,2.90695]
[1617356215592,33.96417746,1994.9,1994.8,2.90695]
[1617356216899,34.25725238,1994.9,1994.8,2.90695]
[1617356217197,34.4331036,1994.9,1994.8,2.90695]
[1617356217696,34.25725539,1994.9,1994.8,2.90695]
[1617356217898,33.96417746,1994.9,1994.8,2.90695]
[1617356219002,34.43311677,1994.9,1994.8,2.90695]
[1617356220202,32.29307215,1994.9,1994.8,2.90695]
[1617356221504,31.29177215,1994.9,1994.8,2.90695]
[1617356221906,0.29307215,1994.9,1994.8,2.90695]
[1617356222507,3.20002215,1994.9,1994.8,2.90695]
[1617356223005,4.90695,1994.9,1994.8,2.90695]
[1617356223707,5.3761108,1994.9,1994.8,2.90695]
[1617356224508,4.90695,1994.9,1994.8,2.90695]
[1617356226010,5.37610848,1994.9,1994.8,2.90695]
[1617356226713,4.90695,1994.9,1994.8,2.90695]
[1617356228413,5.8468454,1994.9,1994.8,2.90695]
[1617356228615,4.8455454,1994.9,1994.8,2.90695]
[1617356229216,6.02698251,1994.9,1994.8,2.90695]
[1617356229614,3.90565,1994.9,1994.8,2.90695]
[1617356230216,33.90565,1994.9,1994.8,2.90695]
[1617356230416,30.0,1994.7,1993.5,78.5235]
[1617356230616,2.90695,1994.2,1994.0,2.90695]
[1617356231017,36.65960089,1994.2,1994.0,2.90695]
[1617356231518,37.07090121,1994.2,1994.0,2.90695]
[1617356233118,0.7051278,1994.1,1994.0,2.90695]
[1617356234920,3.61201048,1994.2,1994.0,2.90695]
[1617356235320,0.4700307,1994.1,1994.0,2.90695]
[1617356235519,2.3756807,1994.2,1994.0,2.90695]
[1617356239223,0.70600928,1994.1,1994.0,2.90695]
[1617356242626,0.59095284,1994.1,1994.0,2.90695]
[1617356247035,0.94125676,1994.5,1994.0,2.90695]
[1617356247433,0.29413361,1994.1,1994.0,2.90695]
[1617356249033,1.93366885,1994.5,1994.0,2.90695]
[1617356249234,0.94136885,1994.5,1994.0,2.90695]
[1617356249633,1.12157864,1994.6,1994.0,2.90695]
[1617356250033,0.29417977,1994.1,1994.0,2.90695]
[1617356251436,1.12157864,1994.6,1994.0,2.90695]
[1617356251933,1.12157864,1994.6,1994.0,4.30475]
[1617356252138,0.29417368,1994.1,1994.0,4.30475]
[1617356253134,0.29416104,1994.2,1994.0,4.30475]
[1617356253733,0.29416863,1994.1,1994.0,4.30475]
[1617356254835,76.1803,1994.7,1994.0,4.30475]
[1617356254836,0.29415309,1994.2,1994.0,4.30475]
[1617356255234,0.29415348,1994.3,1994.0,4.30475]
[1617356255433,0.29414919,1994.2,1994.0,4.30475]
[1617356256334,0.29414877,1994.3,1994.0,4.30475]
[1617356256534,76.1803,1994.7,1994.0,4.30475]
[1617356256735,75.47314877,1994.7,1994.0,4.30475]
[1617356256935,75.47314877,1994.7,1994.6,2.90695]
[1617356262942,78.38009877,1994.7,1994.6,2.90695]
[1617356263342,75.47314877,1994.7,1994.6,2.90695]
[1617356263743,74.47184877,1994.7,1994.6,2.90695]
[1617356270558,1.1769534,1994.9,1994.6,2.90695]
[1617356270948,1.1769534,1994.9,1994.8,1.72552324]
[1617356276660,1.17689653,1995.0,1994.8,1.72552324]
[1617356277058,0.88603663,1994.9,1994.8,1.72552324]
[1617356277258,2.06293938,1995.0,1994.8,1.72552324]
[1617356277758,1.17689653,1995.0,1994.8,1.72552324]
[1617356278259,2.0629482,1995.0,1994.8,1.72552324]
[1617356278562,1.17691597,1994.9,1994.8,1.72552324]
[1617356278762,0.17521597,1994.9,1994.8,1.72552324]
[1617356278964,0.88605378,1994.9,1994.8,1.72552324]
[1617356279366,0.88603648,1995.0,1994.8,1.72552324]
[1617356279565,0.88603229,1994.9,1994.8,1.72552324]
[1617356279965,2.95023441,1995.0,1994.8,1.72552324]
[1617356280267,0.88603501,1994.9,1994.8,1.72552324]
[1617356280664,2.95024356,1995.0,1994.8,1.72552324]
[1617356281264,2.06420572,1995.0,1994.8,1.72552324]
[1617356281764,0.88605208,1994.9,1994.8,1.72552324]
[1617356282266,2.95024977,1995.0,1994.8,1.72552324]
[1617356282462,0.88603018,1994.9,1994.8,1.72552324]
[1617356282863,2.06420572,1995.0,1994.8,1.72552324]
[1617356282864,0.88601417,1995.0,1994.8,1.72552324]
[1617356283263,0.88601342,1994.9,1994.8,1.72552324]
[1617356283866,3.94342815,1995.1,1994.8,1.72552324]
[1617356284065,2.95052815,1995.1,1994.8,1.72552324]
[1617356284266,0.88598897,1995.0,1994.8,1.72552324]
[1617356284666,2.95051811,1995.1,1994.8,1.72552324]
[1617356285168,2.95051811,1995.1,1995.0,2.90695]
[1617356285768,1.94881811,1995.1,1995.0,2.90695]
[1617356287669,1.06283186,1995.1,1995.0,2.90695]
[1617356287969,6.30020473,1995.2,1995.0,2.90695]
[1617356292780,5.29850473,1995.2,1995.0,2.90695]
[1617356294482,1.06565896,1995.2,1995.0,2.90695]
[1617356295083,0.88582745,1995.1,1995.0,73.76385]
[1617356295684,0.94265087,1995.1,1995.0,73.76385]
[1617356298789,0.94161287,1995.2,1995.0,73.76385]
[1617356299688,2.00273441,1995.4,1995.0,73.76385]
[1617356299889,0.88579885,1995.1,1995.0,73.76385]
[1617356300288,2.06280452,1995.4,1995.0,73.76385]
[1617356301090,0.88579897,1995.4,1995.0,73.76385]
[1617356301389,2.90695,1995.5,1995.3,2.90695]
[1617356302189,4.08391632,1995.5,1995.3,2.90695]
[1617356304191,1.17696632,1995.5,1995.3,2.90695]
[1617356304591,1.17663937,1995.6,1995.3,2.90695]
[1617356305193,1.17663937,1995.6,1995.4,56.4693]
[1617356305391,1.17663937,1995.6,1995.5,2.90695]
[1617356306691,0.17493937,1995.6,1995.5,2.90695]
[1617356308091,1.16223937,1995.6,1995.5,2.90695]
[1617356308692,0.17493937,1995.6,1995.5,2.77995]
[1617356308892,0.17493937,1995.6,1995.5,2.40755]
[1617356309098,1.18098444,1995.7,1995.5,2.40755]
[1617356309693,2.19438444,1995.7,1995.5,2.40755]
[1617356309893,1.18098444,1995.7,1995.5,2.40755]
[1617356313697,0.17928444,1995.7,1995.5,2.40755]
[1617356320800,85.26493444,1995.8,1995.5,2.40755]
[1617356321602,85.26493444,1995.8,1995.7,2.90695]
[1617356327809,84.26323444,1995.8,1995.7,2.90695]
[1617356328010,85.43852331,1995.8,1995.7,2.90695]
[1617356329613,84.35568887,1995.8,1995.7,2.90695]
[1617356334721,83.35398887,1995.8,1995.7,2.90695]
[1617356335723,97.35398887,1995.8,1995.7,2.90695]
[1617356337426,96.1787,1995.8,1995.7,2.90695]
[1617356337829,97.11883323,1995.8,1995.7,2.90695]
[1617356338228,96.1787,1995.8,1995.7,2.90695]
[1617356338628,97.11883375,1995.8,1995.7,2.90695]
[1617356338928,96.1787,1995.8,1995.7,2.90695]
[1617356339928,14.0,1995.8,1995.7,2.90695]
[1617356340128,15.17562662,1995.8,1995.7,2.90695]
[1617356340329,15.17562662,1995.8,1995.7,61.90985]
[1617356341733,13.88401594,1995.8,1995.7,2.90695]
[1617356342335,14.58926431,1995.8,1995.7,2.90695]
[1617356342534,14.58926431,1995.8,1995.7,4.90695]
[1617356342736,13.88401594,1995.8,1995.7,4.90695]
[1617356343135,13.89867886,1995.8,1995.7,4.90695]
[1617356343736,13.88401594,1995.8,1995.7,4.90695]
[1617356345735,13.88401594,1995.8,1995.7,34.90695]
[1617356347139,13.88401594,1995.8,1995.7,35.91545]
[1617356347343,13.88401594,1995.8,1995.7,34.90695]
[1617356350339,5.66991594,1995.8,1995.7,34.90695]
[1617356350741,4.66931594,1995.8,1995.7,34.90695]
[1617356350939,4.66931594,1995.8,1995.7,133.90315]
[1617356351144,4.66931594,1995.8,1995.7,34.90695]
[1617356356346,4.66931594,1995.8,1995.7,36.35465]
[1617356357748,3.66871594,1995.8,1995.7,36.35465]
[1617356360449,3.66871594,1995.8,1995.7,34.90695]
[1617356362852,3.66871594,1995.8,1995.7,111.32105]
[1617356364752,2.66811594,1995.8,1995.7,111.32105]
[1617356365253,2.66811594,1995.8,1995.7,81.32105]
[1617356365854,2.66811594,1995.8,1995.7,4.90695]
[1617356367757,2.66811594,1995.8,1995.7,79.75565]
[1617356371762,1.66751594,1995.8,1995.7,79.75565]
[1617356374369,1.66751594,1995.8,1995.7,2.90695]
[1617356374769,1.66751594,1995.8,1995.7,32.90695]
[1617356375369,1.66751594,1995.8,1995.7,35.92065]
[1617356375971,1.66751594,1995.8,1995.7,34.90695]
[1617356377773,1.66751594,1995.8,1995.7,4.90695]
[1617356378574,1.66751594,1995.8,1995.7,2.90695]
[1617356378774,0.66691594,1995.8,1995.7,2.90695]
[1617356385885,61.44808507,1996.5,1995.7,2.90695]
[1617356386884,61.41883898,1996.5,1995.7,2.90695]
[1617356388085,61.41883898,1996.5,1996.4,2.90695]
[1617356388586,0.02924611,1996.6,1996.4,2.90695]
[1617356388984,0.02925156,1996.7,1996.4,2.90695]
[1617356389385,0.02925154,1996.6,1996.4,2.90695]
[1617356389984,0.0292514,1996.7,1996.4,2.90695]
[1617356391889,0.02924983,1996.8,1996.4,2.90695]
[1617356392088,0.02924945,1996.9,1996.7,4.66795]
[1617356392787,0.34487459,1997.5,1996.7,4.66795]
[1617356393488,30.93599446,1997.6,1996.7,2.90695]
[1617356393688,2.0,1997.5,1996.7,2.90695]
[1617356393890,30.0,1997.4,1996.7,2.90695]
[1617356394088,33.0157,1997.4,1997.1,2.90695]
[1617356394291,33.90091502,1997.4,1997.1,2.90695]
[1617356394591,3.90091502,1997.4,1997.1,2.90695]
[1617356394794,0.88522596,1997.3,1997.1,2.90695]
[1617356394991,2.0,1997.4,1997.1,2.90695]
[1617356395792,3.0006,1997.4,1997.1,2.90695]
[1617356395992,3.0006,1997.4,1997.3,2.90695]
[1617356396193,2.0,1997.4,1997.3,2.90695]
[1617356396393,2.0,1997.4,1997.3,2.16515]
[1617356396592,30.93616994,1997.6,1997.3,2.16515]
[1617356396793,0.88518953,1997.5,1997.3,2.16515]
[1617356396993,0.88518953,1997.5,1997.3,5e-05]
[1617356398094,2.90695,1997.4,1997.3,5e-05]
[1617356398295,3.90105,1997.4,1997.3,5e-05]
[1617356398495,2.90695,1997.4,1997.3,5e-05]
[1617356399795,1.90635,1997.4,1997.3,5e-05]
[1617356399995,1.90635,1997.4,1997.1,2.90695]
[1617356400597,0.88519422,1997.3,1997.1,2.90695]
[1617356401998,2.90695,1997.2,1997.1,2.90695]
[1617356406800,1.90635,1997.2,1997.1,2.90695]
[1617356407405,3.81325,1997.2,1997.1,2.90695]
[1617356408402,5.81325,1997.2,1997.1,2.90695]
[1617356410705,87.37155,1997.2,1997.1,2.90695]
[1617356410905,5.81325,1997.2,1997.1,2.90695]
[1617356411105,1.90635,1997.2,1997.1,2.90695]
[1617356411906,0.93790803,1997.3,1997.1,2.90695]
[1617356412105,1.1802138,1997.4,1997.1,2.90695]
[1617356412106,2.11805908,1997.4,1997.1,2.90695]
[1617356412505,1.82292475,1997.4,1997.1,2.90695]
[1617356412906,13.0,1997.2,1997.1,2.90695]
[1617356413308,13.88505764,1997.2,1997.1,2.90695]
[1617356413907,12.88445764,1997.2,1997.1,2.90695]
[1617356414508,14.77765764,1997.2,1997.1,2.90695]
[1617356415807,12.88445764,1997.2,1997.1,2.90695]
[1617356416208,15.79140764,1997.2,1997.1,2.90695]
[1617356417909,12.88445764,1997.2,1997.1,2.90695]
[1617356418308,15.79140764,1997.2,1997.1,2.90695]
[1617356420708,17.79140764,1997.2,1997.1,2.90695]
[1617356421211,18.72957574,1997.2,1997.1,2.90695]
[1617356421410,16.72957574,1997.2,1997.1,2.90695]
[1617356421611,15.79140764,1997.2,1997.1,2.90695]
[1617356422011,17.85241139,1997.2,1997.1,2.90695]
[1617356422814,14.94546139,1997.2,1997.1,2.90695]
[1617356423012,12.88445764,1997.2,1997.1,2.90695]
[1617356423812,11.9994,1997.2,1997.1,2.90695]
[1617356424512,12.05817027,1997.2,1997.1,2.90695]
[1617356425712,12.05817027,1997.2,1997.1,62.81585]
[1617356425912,11.05767027,1997.2,1997.1,62.81585]
[1617356426713,10.9989,1997.2,1997.1,62.81585]
[1617356427115,10.9989,1997.2,1997.1,2.90695]
[1617356427516,10.9989,1997.2,1997.1,4.90695]
[1617356430917,10.9989,1997.2,1997.1,2.90695]
[1617356432518,10.9989,1997.2,1997.1,4.80645]
[1617356432719,10.9989,1997.2,1997.1,6.80645]
[1617356432918,9.9984,1997.2,1997.1,6.80645]
[1617356438928,9.9984,1997.2,1997.1,4.90695]
[1617356439927,8.9979,1997.2,1997.1,4.90695]
[1617356440927,8.9979,1997.2,1997.1,2.90695]
[1617356443133,10.8628,1997.2,1997.1,2.90695]
[1617356443536,71.4356,1997.2,1997.1,2.90695]
[1617356446939,70.4351,1997.2,1997.1,2.90695]
[1617356447938,9.8623,1997.2,1997.1,2.90695]
[1617356453746,7.9974,1997.2,1997.1,2.90695]
[1617356453945,6.9969,1997.2,1997.1,2.90695]
[1617356460856,5.9964,1997.2,1997.1,2.90695]
[1617356464162,7.004,1997.2,1997.1,2.90695]
[1617356464361,5.9964,1997.2,1997.1,2.90695]
[1617356467964,4.9959,1997.2,1997.1,2.90695]
[1617356468966,34.9959,1997.2,1997.1,2.90695]
[1617356469187,80.7849,1996.7,1995.2,70.5441]
[1617356469380,82.5747,1996.7,1995.2,70.5441]
[1617356469573,112.5747,1996.7,1995.2,70.5441]
[1617356469978,2.0,1996.6,1995.2,70.5441]
[1617356470188,112.5747,1996.7,1995.2,70.5441]
[1617356470376,112.63321757,1996.7,1995.2,70.5441]
[1617356470574,112.63321757,1996.7,1996.6,2.90695]
[1617356470973,112.63321757,1996.7,1996.6,2.01265]
[1617356471174,114.5747,1996.7,1995.2,70.5441]
[1617356471774,0.05852175,1996.6,1995.2,70.5441]
[1617356472572,0.05852175,1996.6,1996.4,2.90695]
[1617356472974,0.05856275,1996.5,1996.4,2.90695]
[1617356474377,0.0585365,1996.6,1996.4,2.90695]
[1617356474577,32.90695,1996.5,1996.4,2.90695]
[1617356474776,2.90695,1996.5,1996.4,1.89325]
[1617356474975,1.90645,1996.5,1996.4,1.89325]
[1617356475177,1.9649863,1996.5,1996.4,1.89325]
[1617356475778,1.90645,1996.5,1996.4,1.89325]
[1617356476178,1.90645,1996.5,1996.4,73.66035]
[1617356476378,0.0585355,1996.6,1996.4,73.66035]
[1617356476578,2.0,1996.7,1996.4,73.66035]
[1617356477378,32.0,1996.7,1996.4,73.66035]
[1617356478077,2.0,1996.7,1996.4,73.66035]
[1617356478277,30.0,1996.6,1996.4,1.89325]
[1617356478481,31.2258,1996.6,1996.4,1.89325]
[1617356478682,83.14925,1996.5,1996.4,1.89325]
[1617356479277,85.14925,1996.5,1996.4,1.89325]
[1617356480079,83.14925,1996.5,1996.4,1.89325]
[1617356480978,83.14925,1996.5,1995.6,71.5627]
[1617356481179,2.0,1996.4,1995.6,71.5627]
[1617356481879,0.9995,1996.4,1995.6,71.5627]
[1617356482079,83.14925,1996.5,1995.6,71.5627]
[1617356482683,83.14925,1996.5,1996.4,2.90695]
[1617356483081,85.14925,1996.5,1996.4,2.90695]
[1617356483481,115.14925,1996.5,1996.4,2.90695]
[1617356483681,113.14925,1996.5,1996.4,2.90695]
[1617356484285,113.14925,1996.5,1995.6,71.5627]
[1617356484684,2.0,1996.4,1996.1,2.90695]
[1617356485087,110.30082876,1996.5,1996.1,2.90695]
[1617356485390,0.05852887,1996.4,1996.1,2.90695]
[1617356485791,110.30079734,1996.5,1996.1,2.90695]
[1617356485990,2.0,1996.4,1996.1,2.90695]
[1617356486190,110.30079734,1996.5,1996.1,2.90695]
[1617356486590,2.90695,1996.2,1996.1,2.90695]
[1617356486789,34.54575,1996.2,1996.1,2.90695]
[1617356487590,36.54575,1996.2,1996.1,2.90695]
[1617356487790,37.55345,1996.2,1996.1,2.90695]
[1617356488790,35.55345,1996.2,1996.1,2.90695]
[1617356488991,34.55295,1996.2,1996.1,2.90695]
[1617356489496,4.55295,1996.2,1996.1,2.90695]
[1617356491793,34.55295,1996.2,1996.1,2.90695]
[1617356493901,3.54525,1996.2,1996.1,2.90695]
[1617356494302,0.05850055,1996.5,1996.1,2.90695]
[1617356494503,0.05849045,1996.7,1996.4,66.4056]
[1617356494703,0.05849045,1996.7,1996.6,2.90695]
[1617356494904,2.90695,1996.9,1996.6,2.90695]
[1617356496705,2.90695,1996.9,1996.8,2.90695]
[1617356498109,1.90595,1996.9,1996.8,2.90695]
[1617356502116,1.96444628,1996.9,1996.8,2.90695]
[1617356502715,1.96444628,1996.9,1996.6,2.90695]
[1617356502915,3.89174628,1996.9,1996.6,2.90695]
[1617356503115,30.0,1996.8,1996.6,2.90695]
[1617356503316,31.0617998,1996.8,1996.6,2.90695]
[1617356503717,0.05850092,1996.7,1996.6,2.90695]